[Event "Swedish Chess Championship 2019: Weekend 1"]
[Site "Stiga Sports Arena, Arenatorget 1, Eskilstuna, Sweden"]
[Date "2019.07.05"]
[Round "1.1"]
[White "Svorono, Gabriel"]
[Black "Westerberg, Jonathan"]
[Result "0-1"]
[TimeControl "90 minutes + 30 seconds per move from move one"]
[BlackTitle "IM"]
[WhiteFideId "1715623"]
[BlackFideId "1701754"]
[WhiteElo "2098"]
[BlackElo "2546"]

1. e4 {[%clk 01:30:55]} {[%emt 00:00:04]} c5 {[%clk 01:30:23]} {[%emt
00:00:38]} 2. Nf3 {[%clk 01:31:12]} {[%emt 00:00:12]} Nc6 {[%clk 01:29:19]}
{[%emt 00:01:34]} 3. d4 {[%clk 01:31:33]} {[%emt 00:00:08]} cxd4 {[%clk
01:29:40]} {[%emt 00:00:10]} 4. Nxd4 {[%clk 01:31:55]} {[%emt 00:00:08]} Nf6
{[%clk 01:29:59]} {[%emt 00:00:10]} 5. Nc3 {[%clk 01:32:17]} {[%emt 00:00:09]}
d6 {[%clk 01:30:21]} {[%emt 00:00:08]} 6. f3 {[%clk 01:30:33]} {[%emt
00:02:14]} e5 {[%clk 01:29:33]} {[%emt 00:01:15]} 7. Nb3 {[%clk 01:30:24]}
{[%emt 00:00:42]} Be6 {[%clk 01:28:25]} {[%emt 00:01:36]} 8. Nd5 {[%clk
01:27:54]} {[%emt 00:03:01]} Bxd5 {[%clk 01:26:50]} {[%emt 00:02:06]} 9. exd5
{[%clk 01:27:57]} {[%emt 00:00:27]} Nb8 {[%clk 01:27:08]} {[%emt 00:00:11]} 10.
Bd3 {[%clk 01:27:05]} {[%emt 00:01:21]} Nbd7 {[%clk 01:26:23]} {[%emt
00:01:16]} 11. c4 {[%clk 01:25:47]} {[%emt 00:01:48]} g6 {[%clk 01:25:09]}
{[%emt 00:01:44]} 12. O-O {[%clk 01:25:52]} {[%emt 00:00:25]} Bg7 {[%clk
01:25:04]} {[%emt 00:00:35]} 13. Be3 {[%clk 01:24:50]} {[%emt 00:01:33]} O-O
{[%clk 01:25:17]} {[%emt 00:00:17]} 14. Qd2 {[%clk 01:16:39]} {[%emt 00:08:41]}
a5 {[%clk 01:23:04]} {[%emt 00:02:43]} 15. Rfe1 {[%clk 01:13:50]} {[%emt
00:03:18]} a4 {[%clk 01:22:36]} {[%emt 00:00:58]} 16. Nc1 {[%clk 01:14:06]}
{[%emt 00:00:12]} a3 {[%clk 01:22:21]} {[%emt 00:00:46]} 17. Rb1 {[%clk
01:11:13]} {[%emt 00:03:22]} axb2 {[%clk 01:21:14]} {[%emt 00:01:38]} 18. Rxb2
{[%clk 01:10:48]} {[%emt 00:00:55]} b6 {[%clk 01:16:51]} {[%emt 00:04:53]} 19.
Ne2 {[%clk 01:10:13]} {[%emt 00:01:05]} Nc5 {[%clk 01:15:42]} {[%emt 00:01:39]}
20. Nc3 {[%clk 01:09:11]} {[%emt 00:01:31]} e4 {[%clk 01:14:34]} {[%emt
00:01:38]} 21. Bxe4 {[%clk 01:00:02]} {[%emt 00:09:39]} Nfxe4 {[%clk 01:01:09]}
{[%emt 00:13:57]} 22. fxe4 {[%clk 01:00:16]} {[%emt 00:00:15]} Qf6 {[%clk
01:00:57]} {[%emt 00:00:40]} 23. Rc2 {[%clk 00:59:28]} {[%emt 00:01:20]} Ra3
{[%clk 00:58:27]} {[%emt 00:03:01]} 24. Nb5 {[%clk 00:58:05]} {[%emt 00:01:50]}
Nxe4 {[%clk 00:39:29]} {[%emt 00:19:32]} 25. Qe2 {[%clk 00:48:45]} {[%emt
00:09:50]} Nc3 {[%clk 00:38:30]} {[%emt 00:01:29]} 26. Nxc3 {[%clk 00:40:51]}
{[%emt 00:08:22]} Rxc3 {[%clk 00:38:54]} {[%emt 00:00:07]} 27. Bxb6 {[%clk
00:40:58]} {[%emt 00:00:22]} Rc8 {[%clk 00:35:55]} {[%emt 00:03:31]} 28. Rec1
{[%clk 00:37:09]} {[%emt 00:04:18]} R8xc4 {[%clk 00:32:37]} {[%emt 00:03:49]}
29. Qxc4 {[%clk 00:36:53]} {[%emt 00:00:42]} Rxc4 {[%clk 00:33:01]} {[%emt
00:00:09]} 30. Rxc4 {[%clk 00:37:19]} {[%emt 00:00:04]} h5 {[%clk 00:28:43]}
{[%emt 00:04:47]} 31. a4 {[%clk 00:35:01]} {[%emt 00:02:49]} Qe5 {[%clk
00:25:24]} {[%emt 00:03:46]} 32. a5 {[%clk 00:34:23]} {[%emt 00:01:10]} Qxd5
{[%clk 00:25:40]} {[%emt 00:00:15]} 33. a6 {[%clk 00:32:37]} {[%emt 00:02:16]}
Qb5 {[%clk 00:26:04]} {[%emt 00:00:05]} 34. Rc6 {[%clk 00:28:15]} {[%emt
00:04:52]} Qxa6 {[%clk 00:24:37]} {[%emt 00:01:58]} 35. Rxd6 {[%clk 00:27:21]}
{[%emt 00:01:22]} Be5 {[%clk 00:24:02]} {[%emt 00:01:05]} 36. Rd8+ {[%clk
00:27:12]} {[%emt 00:00:40]} Kh7 {[%clk 00:23:59]} {[%emt 00:00:33]} 37. Bf2
{[%clk 00:22:44]} {[%emt 00:04:58]} Qf6 {[%clk 00:23:19]} {[%emt 00:01:09]} 38.
Rd7 {[%clk 00:18:41]} {[%emt 00:04:35]} Bxh2+ {[%clk 00:22:27]} {[%emt
00:01:22]} 39. Kxh2 {[%clk 00:18:26]} {[%emt 00:00:44]} Qf4+ {[%clk 00:17:51]}
{[%emt 00:05:06]} 40. Bg3 {[%clk 00:18:35]} {[%emt 00:00:20]} Qxc1 {[%clk
00:18:18]} {[%emt 00:00:05]} 41. Rxf7+ {[%clk 00:18:52]} {[%emt 00:00:13]} Kg8
{[%clk 00:18:42]} {[%emt 00:00:04]} 42. Rc7 {[%clk 00:17:50]} {[%emt 00:01:33]}
Qe3 {[%clk 00:18:01]} {[%emt 00:01:09]} 43. Rc2 {[%clk 00:12:50]} {[%emt
00:05:32]} g5 {[%clk 00:17:22]} {[%emt 00:01:10]} 44. Bc7 {[%clk 00:12:03]}
{[%emt 00:01:17]} Kg7 {[%clk 00:17:08]} {[%emt 00:00:44]} 45. Bd6 {[%clk
00:10:53]} {[%emt 00:01:40]} Kg6 {[%clk 00:15:35]} {[%emt 00:02:03]} 46. Bc5
{[%clk 00:09:26]} {[%emt 00:01:57]} Qe4 {[%clk 00:15:14]} {[%emt 00:00:50]} 0-1

[Event "Swedish Chess Championship 2019: Weekend 1"]
[Site "Stiga Sports Arena, Arenatorget 1, Eskilstuna, Sweden"]
[Date "2019.07.05"]
[Round "1.2"]
[White "Namini, Armin"]
[Black "Tolen, Michael"]
[Result "1-0"]
[TimeControl "90 minutes + 30 seconds per move from move one"]
[WhiteFideId "1706322"]
[BlackFideId "1714376"]
[WhiteElo "2241"]
[BlackElo "2026"]

1. c4 {[%clk 01:30:56]} {[%emt 00:00:02]} e6 {[%clk 01:30:36]} {[%emt
00:00:26]} 2. g3 {[%clk 01:31:20]} {[%emt 00:00:06]} d5 {[%clk 01:30:31]}
{[%emt 00:00:35]} 3. Bg2 {[%clk 01:31:46]} {[%emt 00:00:04]} f5 {[%clk
01:30:49]} {[%emt 00:00:12]} 4. Nf3 {[%clk 01:31:57]} {[%emt 00:00:18]} Nf6
{[%clk 01:31:04]} {[%emt 00:00:15]} 5. O-O {[%clk 01:32:20]} {[%emt 00:00:08]}
Bd6 {[%clk 01:31:19]} {[%emt 00:00:15]} 6. d3 {[%clk 01:30:38]} {[%emt
00:02:11]} O-O {[%clk 01:31:12]} {[%emt 00:00:37]} 7. Nc3 {[%clk 01:30:46]}
{[%emt 00:00:22]} Qe8 {[%clk 01:28:23]} {[%emt 00:03:19]} 8. e4 {[%clk
01:25:50]} {[%emt 00:05:26]} dxe4 {[%clk 01:24:16]} {[%emt 00:04:37]} 9. dxe4
{[%clk 01:26:11]} {[%emt 00:00:09]} Nc6 {[%clk 01:18:50]} {[%emt 00:05:56]} 10.
exf5 {[%clk 01:21:50]} {[%emt 00:04:51]} exf5 {[%clk 01:17:37]} {[%emt
00:01:44]} 11. Nb5 {[%clk 01:20:18]} {[%emt 00:02:02]} Ne4 {[%clk 01:12:31]}
{[%emt 00:05:36]} 12. Ng5 {[%clk 01:15:23]} {[%emt 00:05:24]} Nxg5 {[%clk
01:11:19]} {[%emt 00:01:42]} 13. Bxg5 {[%clk 01:13:21]} {[%emt 00:02:32]} Qg6
{[%clk 01:10:35]} {[%emt 00:01:14]} 14. Nxd6 {[%clk 01:13:03]} {[%emt
00:00:48]} cxd6 {[%clk 01:07:28]} {[%emt 00:03:36]} 15. Bf4 {[%clk 01:12:44]}
{[%emt 00:00:49]} Be6 {[%clk 01:02:46]} {[%emt 00:05:12]} 16. b3 {[%clk
01:09:59]} {[%emt 00:03:15]} Rad8 {[%clk 01:02:46]} {[%emt 00:00:29]} 17. Re1
{[%clk 01:07:17]} {[%emt 00:03:12]} Bf7 {[%clk 01:00:07]} {[%emt 00:03:10]} 18.
Qd2 {[%clk 01:05:42]} {[%emt 00:02:05]} Rd7 {[%clk 01:00:06]} {[%emt 00:00:32]}
19. c5 {[%clk 00:59:35]} {[%emt 00:06:36]} Ne7 {[%clk 00:50:40]} {[%emt
00:09:56]} 20. Rad1 {[%clk 00:37:28]} {[%emt 00:22:37]} Nc8 {[%clk 00:49:28]}
{[%emt 00:01:42]} 21. c6 {[%clk 00:35:55]} {[%emt 00:02:03]} bxc6 {[%clk
00:49:01]} {[%emt 00:00:57]} 22. Bxc6 {[%clk 00:36:20]} {[%emt 00:00:05]} Rc7
{[%clk 00:48:47]} {[%emt 00:00:45]} 23. Bf3 {[%clk 00:36:32]} {[%emt 00:00:17]}
Rd7 {[%clk 00:48:16]} {[%emt 00:01:02]} 24. Qa5 {[%clk 00:29:22]} {[%emt
00:07:40]} Nb6 {[%clk 00:44:17]} {[%emt 00:04:29]} 25. Bc6 {[%clk 00:28:09]}
{[%emt 00:01:43]} Rdd8 {[%clk 00:40:20]} {[%emt 00:04:28]} 26. Qxa7 {[%clk
00:24:52]} {[%emt 00:03:47]} Nc8 {[%clk 00:40:32]} {[%emt 00:00:17]} 27. Qa5
{[%clk 00:24:00]} {[%emt 00:01:22]} Qf6 {[%clk 00:40:39]} {[%emt 00:00:24]} 28.
h4 {[%clk 00:21:11]} {[%emt 00:03:18]} h6 {[%clk 00:40:43]} {[%emt 00:00:27]}
29. Bf3 {[%clk 00:20:34]} {[%emt 00:01:06]} g5 {[%clk 00:39:59]} {[%emt
00:01:14]} 30. hxg5 {[%clk 00:20:59]} {[%emt 00:00:05]} hxg5 {[%clk 00:40:20]}
{[%emt 00:00:09]} 31. Be3 {[%clk 00:19:03]} {[%emt 00:02:26]} Qg6 {[%clk
00:37:27]} {[%emt 00:03:23]} 32. Bd4 {[%clk 00:18:06]} {[%emt 00:01:27]} g4
{[%clk 00:32:16]} {[%emt 00:05:41]} 33. Bg2 {[%clk 00:18:03]} {[%emt 00:00:33]}
Rfe8 {[%clk 00:29:37]} {[%emt 00:03:10]} 34. Bc6 {[%clk 00:15:15]} {[%emt
00:03:19]} Rxe1+ {[%clk 00:28:36]} {[%emt 00:01:30]} 35. Rxe1 {[%clk 00:15:41]}
{[%emt 00:00:05]} d5 {[%clk 00:27:55]} {[%emt 00:01:12]} 36. Qxd8+ {[%clk
00:16:03]} {[%emt 00:00:07]} 1-0

[Event "Swedish Chess Championship 2019: Weekend 1"]
[Site "Stiga Sports Arena, Arenatorget 1, Eskilstuna, Sweden"]
[Date "2019.07.05"]
[Round "1.3"]
[White "Mardell, Jonas"]
[Black "Eriksson, Kristian"]
[Result "1-0"]
[TimeControl "90 minutes + 30 seconds per move from move one"]
[WhiteFideId "1705636"]
[BlackFideId "1705172"]
[WhiteElo "2024"]
[BlackElo "2123"]

1. e4 {[%clk 01:30:57]} {[%emt 00:00:03]} e5 {[%clk 01:30:30]} {[%emt
00:00:30]} 2. Nc3 {[%clk 01:31:02]} {[%emt 00:00:26]} Nf6 {[%clk 01:30:43]}
{[%emt 00:00:16]} 3. f4 {[%clk 01:30:53]} {[%emt 00:00:39]} d5 {[%clk
01:30:35]} {[%emt 00:00:38]} 4. fxe5 {[%clk 01:30:45]} {[%emt 00:00:39]} Nxe4
{[%clk 01:30:53]} {[%emt 00:00:11]} 5. Nf3 {[%clk 01:30:15]} {[%emt 00:01:00]}
Be7 {[%clk 01:28:43]} {[%emt 00:02:40]} 6. Qe2 {[%clk 01:23:21]} {[%emt
00:07:25]} Nxc3 {[%clk 01:26:04]} {[%emt 00:03:09]} 7. dxc3 {[%clk 01:21:49]}
{[%emt 00:02:02]} O-O {[%clk 01:22:56]} {[%emt 00:03:37]} 8. Bf4 {[%clk
01:20:03]} {[%emt 00:02:16]} c6 {[%clk 01:20:02]} {[%emt 00:03:25]} 9. O-O-O
{[%clk 01:12:19]} {[%emt 00:08:13]} Bg4 {[%clk 01:09:24]} {[%emt 00:11:07]} 10.
Qf2 {[%clk 01:04:49]} {[%emt 00:08:01]} Bxf3 {[%clk 01:01:54]} {[%emt
00:08:00]} 11. gxf3 {[%clk 01:04:34]} {[%emt 00:00:45]} Bg5 {[%clk 01:01:33]}
{[%emt 00:00:51]} 12. Bxg5 {[%clk 01:02:18]} {[%emt 00:02:46]} Qxg5+ {[%clk
01:01:59]} {[%emt 00:00:04]} 13. f4 {[%clk 01:02:38]} {[%emt 00:00:10]} Qh6
{[%clk 00:59:47]} {[%emt 00:02:42]} 14. Rd3 {[%clk 00:57:37]} {[%emt 00:05:30]}
Nd7 {[%clk 00:48:19]} {[%emt 00:11:58]} 15. Rh3 {[%clk 00:48:35]} {[%emt
00:09:32]} Qe6 {[%clk 00:46:33]} {[%emt 00:02:16]} 16. Qh4 {[%clk 00:48:13]}
{[%emt 00:00:52]} h6 {[%clk 00:43:30]} {[%emt 00:03:33]} 17. Rg1 {[%clk
00:42:19]} {[%emt 00:06:24]} Kh8 {[%clk 00:22:46]} {[%emt 00:21:15]} 18. Bd3
{[%clk 00:31:50]} {[%emt 00:10:58]} Nc5 {[%clk 00:15:40]} {[%emt 00:07:37]} 19.
Qh5 {[%clk 00:22:27]} {[%emt 00:09:53]} Nxd3+ {[%clk 00:12:01]} {[%emt
00:04:09]} 20. cxd3 {[%clk 00:22:49]} {[%emt 00:00:08]} Kh7 {[%clk 00:11:28]}
{[%emt 00:01:02]} 21. Rxg7+ {[%clk 00:22:06]} {[%emt 00:01:14]} Kxg7 {[%clk
00:11:08]} {[%emt 00:00:49]} 22. f5 {[%clk 00:22:28]} {[%emt 00:00:09]} Qxe5
{[%clk 00:10:12]} {[%emt 00:01:26]} 23. Qxh6+ {[%clk 00:22:49]} {[%emt
00:00:09]} Kg8 {[%clk 00:10:36]} {[%emt 00:00:06]} 24. Qh7# 1-0

[Event "Swedish Chess Championship 2019: Weekend 1"]
[Site "Stiga Sports Arena, Arenatorget 1, Eskilstuna, Sweden"]
[Date "2019.07.05"]
[Round "1.4"]
[White "Nordebrink, Johan"]
[Black "Wallgren, Ulf"]
[Result "1/2-1/2"]
[TimeControl "90 minutes + 30 seconds per move from move one"]
[WhiteFideId "1706721"]
[BlackFideId "1706527"]
[WhiteElo "2109"]
[BlackElo "2013"]

1. e4 {[%clk 01:30:55]} {[%emt 00:00:03]} d5 {[%clk 01:30:46]} {[%emt
00:00:15]} 2. exd5 {[%clk 01:31:04]} {[%emt 00:00:22]} Qxd5 {[%clk 01:31:10]}
{[%emt 00:00:05]} 3. Nf3 {[%clk 01:31:13]} {[%emt 00:00:21]} Bg4 {[%clk
01:29:37]} {[%emt 00:02:04]} 4. Be2 {[%clk 01:31:32]} {[%emt 00:00:11]} Nc6
{[%clk 01:28:55]} {[%emt 00:01:11]} 5. h3 {[%clk 01:30:25]} {[%emt 00:01:36]}
Bxf3 {[%clk 01:21:50]} {[%emt 00:07:36]} 6. Bxf3 {[%clk 01:30:45]} {[%emt
00:00:09]} Qe5+ {[%clk 01:21:29]} {[%emt 00:00:52]} 7. Qe2 {[%clk 01:30:07]}
{[%emt 00:01:08]} Qxe2+ {[%clk 01:21:38]} {[%emt 00:00:22]} 8. Bxe2 {[%clk
01:30:27]} {[%emt 00:00:10]} e5 {[%clk 01:20:56]} {[%emt 00:01:12]} 9. O-O
{[%clk 01:25:46]} {[%emt 00:05:10]} Nf6 {[%clk 01:18:29]} {[%emt 00:02:57]} 10.
Bb5 {[%clk 01:25:02]} {[%emt 00:01:15]} Bd6 {[%clk 01:14:41]} {[%emt 00:04:18]}
11. Bxc6+ {[%clk 01:14:05]} {[%emt 00:11:27]} bxc6 {[%clk 01:15:08]} {[%emt
00:00:03]} 12. d3 {[%clk 01:14:25]} {[%emt 00:00:09]} Kd7 {[%clk 01:10:11]}
{[%emt 00:05:27]} 13. Nd2 {[%clk 01:13:00]} {[%emt 00:01:56]} Nd5 {[%clk
01:04:21]} {[%emt 00:06:19]} 14. Nc4 {[%clk 01:09:03]} {[%emt 00:04:28]} Rae8
{[%clk 00:55:21]} {[%emt 00:09:30]} 15. Rd1 {[%clk 00:59:15]} {[%emt 00:10:17]}
f5 {[%clk 00:50:10]} {[%emt 00:05:41]} 16. Ne3 {[%clk 00:48:06]} {[%emt
00:11:39]} f4 {[%clk 00:44:14]} {[%emt 00:06:27]} 17. Nf5 {[%clk 00:44:07]}
{[%emt 00:04:29]} g5 {[%clk 00:37:31]} {[%emt 00:07:12]} 18. c4 {[%clk
00:41:45]} {[%emt 00:02:51]} Ne7 {[%clk 00:30:24]} {[%emt 00:07:37]} 19. Nh6
{[%clk 00:37:24]} {[%emt 00:04:52]} Rhf8 {[%clk 00:24:14]} {[%emt 00:06:40]} 20.
Bd2 {[%clk 00:34:46]} {[%emt 00:03:08]} c5 {[%clk 00:19:55]} {[%emt 00:04:50]}
21. Bc3 {[%clk 00:33:04]} {[%emt 00:02:12]} Nc6 {[%clk 00:19:50]} {[%emt
00:00:34]} 22. Rac1 {[%clk 00:29:27]} {[%emt 00:04:07]} Re6 {[%clk 00:18:48]}
{[%emt 00:01:32]} 23. Ng4 {[%clk 00:29:15]} {[%emt 00:00:42]} h5 {[%clk
00:19:10]} {[%emt 00:00:08]} 24. Nh2 {[%clk 00:29:23]} {[%emt 00:00:22]} Rg8
{[%clk 00:16:33]} {[%emt 00:03:07]} 25. f3 {[%clk 00:25:21]} {[%emt 00:04:32]}
Ne7 {[%clk 00:16:53]} {[%emt 00:00:11]} 26. Be1 {[%clk 00:24:52]} {[%emt
00:00:58]} Nf5 {[%clk 00:16:47]} {[%emt 00:00:37]} 27. Bf2 {[%clk 00:25:03]}
{[%emt 00:00:18]} Rb8 {[%clk 00:15:55]} {[%emt 00:01:23]} 28. Rc2 {[%clk
00:24:05]} {[%emt 00:01:27]} Rg6 {[%clk 00:14:47]} {[%emt 00:01:38]} 29. Re1
{[%clk 00:22:41]} {[%emt 00:01:53]} Rgg8 {[%clk 00:12:35]} {[%emt 00:02:42]} 30.
b3 {[%clk 00:19:36]} {[%emt 00:03:36]} a5 {[%clk 00:12:00]} {[%emt 00:01:05]}
31. Rb2 {[%clk 00:19:28]} {[%emt 00:00:36]} Rb7 {[%clk 00:07:44]} {[%emt
00:04:48]} 32. Nf1 {[%clk 00:19:05]} {[%emt 00:00:53]} g4 {[%clk 00:06:36]}
{[%emt 00:01:38]} 33. hxg4 {[%clk 00:19:22]} {[%emt 00:00:13]} hxg4 {[%clk
00:07:05]} {[%emt 00:00:02]} 34. fxg4 {[%clk 00:19:42]} {[%emt 00:00:10]} Nh6
{[%clk 00:05:23]} {[%emt 00:02:11]} 35. Nd2 {[%clk 00:16:02]} {[%emt 00:04:11]}
Nxg4 {[%clk 00:05:41]} {[%emt 00:00:13]} 36. Ne4 {[%clk 00:16:21]} {[%emt
00:00:10]} Kc6 {[%clk 00:05:51]} {[%emt 00:00:20]} 37. Kf1 {[%clk 00:16:05]}
{[%emt 00:00:45]} Nh2+ {[%clk 00:05:13]} {[%emt 00:01:08]} 38. Kg1 {[%clk
00:15:03]} {[%emt 00:01:32]} Nf3+ {[%clk 00:05:30]} {[%emt 00:00:13]} 39. Kf1
{[%clk 00:15:28]} {[%emt 00:00:05]} Nxe1 {[%clk 00:05:46]} {[%emt 00:00:14]} 40.
Bxe1 {[%clk 00:15:49]} {[%emt 00:00:09]} a4 {[%clk 00:05:53]} {[%emt 00:00:24]}
41. Bc3 {[%clk 00:13:27]} {[%emt 00:02:52]} axb3 {[%clk 00:05:57]} {[%emt
00:00:26]} 42. axb3 {[%clk 00:11:50]} {[%emt 00:02:06]} Rgb8 {[%clk 00:06:15]}
{[%emt 00:00:10]} 43. Nd2 {[%clk 00:12:13]} {[%emt 00:00:07]} Kd7 {[%clk
00:06:21]} {[%emt 00:00:25]} 44. Ra2 {[%clk 00:12:14]} {[%emt 00:00:30]} Ke6
{[%clk 00:05:19]} {[%emt 00:01:32]} 45. Ra5 {[%clk 00:11:38]} {[%emt 00:01:06]}
Rg8 {[%clk 00:05:16]} {[%emt 00:00:32]} 46. Ra3 {[%clk 00:10:02]} {[%emt
00:02:06]} Rg3 {[%clk 00:04:33]} {[%emt 00:01:13]} 47. Nf3 {[%clk 00:10:19]}
{[%emt 00:00:13]} Rb8 {[%clk 00:04:30]} {[%emt 00:00:33]} 48. Be1 {[%clk
00:10:15]} {[%emt 00:00:35]} Rgg8 {[%clk 00:04:53]} {[%emt 00:00:07]} 49. Nd2
{[%clk 00:10:09]} {[%emt 00:00:36]} Ra8 {[%clk 00:05:12]} {[%emt 00:00:12]} 50.
Rxa8 {[%clk 00:09:31]} {[%emt 00:01:09]} Rxa8 {[%clk 00:05:40]} {[%emt
00:00:01]} 51. Ke2 {[%clk 00:09:06]} {[%emt 00:00:53]} Kf5 {[%clk 00:04:53]}
{[%emt 00:01:19]} 52. Kf3 {[%clk 00:08:21]} {[%emt 00:01:14]} Ra2 {[%clk
00:03:56]} {[%emt 00:01:27]} 53. Ne4 {[%clk 00:05:38]} {[%emt 00:03:14]} Rb2
{[%clk 00:04:12]} {[%emt 00:00:14]} 54. g4+ {[%clk 00:05:35]} {[%emt 00:00:32]}
fxg3 {[%clk 00:03:51]} {[%emt 00:00:52]} 55. Nxg3+ {[%clk 00:05:54]} {[%emt
00:00:10]} Ke6 {[%clk 00:03:41]} {[%emt 00:00:41]} 56. Ke4 {[%clk 00:06:08]}
{[%emt 00:00:16]} Rxb3 {[%clk 00:03:51]} {[%emt 00:00:20]} 57. Bf2 {[%clk
00:05:24]} {[%emt 00:01:12]} Rb2 {[%clk 00:03:36]} {[%emt 00:00:45]} 58. Be3
{[%clk 00:05:29]} {[%emt 00:00:25]} Rh2 {[%clk 00:03:09]} {[%emt 00:00:57]} 59.
Kf3 {[%clk 00:04:42]} {[%emt 00:01:17]} Rh3 {[%clk 00:02:21]} {[%emt 00:01:17]}
60. Kg4 {[%clk 00:05:04]} {[%emt 00:00:08]} Rh8 {[%clk 00:02:41]} {[%emt
00:00:10]} 61. Kf3 {[%clk 00:04:38]} {[%emt 00:00:55]} Be7 {[%clk 00:02:34]}
{[%emt 00:00:38]} 62. Ke2 {[%clk 00:04:23]} {[%emt 00:00:45]} Rh3 {[%clk
00:01:30]} {[%emt 00:01:33]} 63. Ne4 {[%clk 00:04:29]} {[%emt 00:00:25]} Kf5
{[%clk 00:01:18]} {[%emt 00:00:42]} 64. Bxc5 {[%clk 00:04:03]} {[%emt
00:00:56]} Bxc5 {[%clk 00:01:35]} {[%emt 00:00:14]} 65. Nxc5 {[%clk 00:04:28]}
{[%emt 00:00:05]} c6 {[%clk 00:01:37]} {[%emt 00:00:27]} 66. Kf2 {[%clk
00:03:33]} {[%emt 00:01:24]} Kf6 {[%clk 00:00:59]} {[%emt 00:01:09]} 67. Kg2
{[%clk 00:03:48]} {[%emt 00:00:16]} Rh8 {[%clk 00:01:12]} {[%emt 00:00:17]} 68.
Kf3 {[%clk 00:04:07]} {[%emt 00:00:10]} Rh4 {[%clk 00:01:05]} {[%emt 00:00:37]}
69. Ke3 {[%clk 00:02:51]} {[%emt 00:01:46]} Rd4 {[%clk 00:00:45]} {[%emt
00:00:50]} 70. Nb3 {[%clk 00:03:07]} {[%emt 00:00:14]} Rd8 {[%clk 00:01:09]}
{[%emt 00:00:05]} 71. Nc5 {[%clk 00:03:33]} {[%emt 00:00:06]} Rh8 {[%clk
00:01:12]} {[%emt 00:00:26]} 72. Ke4 {[%clk 00:03:50]} {[%emt 00:00:13]} Rh4+
{[%clk 00:01:38]} {[%emt 00:00:04]} 73. Ke3 {[%clk 00:04:12]} {[%emt 00:00:07]}
Ke7 {[%clk 00:01:59]} {[%emt 00:00:10]} 74. Nb7 {[%clk 00:03:16]} {[%emt
00:01:25]} Kd7 {[%clk 00:02:18]} {[%emt 00:00:11]} 75. Nc5+ {[%clk 00:03:40]}
{[%emt 00:00:07]} Kc7 {[%clk 00:02:28]} {[%emt 00:00:20]} 76. Ne6+ {[%clk
00:03:42]} {[%emt 00:00:27]} Kd6 {[%clk 00:02:05]} {[%emt 00:00:54]} 77. Ng5
{[%clk 00:04:01]} {[%emt 00:00:11]} Kc5 {[%clk 00:01:41]} {[%emt 00:00:54]} 78.
Nf3 {[%clk 00:04:24]} {[%emt 00:00:08]} Rh3 {[%clk 00:01:08]} {[%emt 00:01:01]}
79. Ke4 {[%clk 00:04:24]} {[%emt 00:00:31]} Rxf3 {[%clk 00:01:10]} {[%emt
00:00:28]} 80. Kxf3 {[%clk 00:04:48]} {[%emt 00:00:06]} Kd4 {[%clk 00:01:35]}
{[%emt 00:00:05]} 81. Ke2 {[%clk 00:05:10]} {[%emt 00:00:08]} c5 {[%clk
00:00:55]} {[%emt 00:01:11]} 82. Kd2 {[%clk 00:05:35]} {[%emt 00:00:05]} e4
{[%clk 00:01:14]} {[%emt 00:00:11]} 83. dxe4 {[%clk 00:05:56]} {[%emt
00:00:09]} Kxe4 {[%clk 00:01:29]} {[%emt 00:00:16]} 84. Kc3 {[%clk 00:05:53]}
{[%emt 00:00:32]} Ke3 {[%clk 00:01:50]} {[%emt 00:00:10]} 85. Kb2 {[%clk
00:06:09]} {[%emt 00:00:14]} Kd4 {[%clk 00:01:59]} {[%emt 00:00:20]} 86. Kb3
{[%clk 00:06:31]} {[%emt 00:00:08]} Ke4 {[%emt 00:00:27]} 1/2-1/2